[Event "Asian Junior-ch 2017-Open"]
[Site "Shiraz"]
[Date "2017.05.05"]
[Round "4"]
[White "Daneshvar, Bardiya"]
[Black "Suleymenov, Alisher"]
[Result "0-1"]
[ECO "E33"]
[WhiteElo "2105"]
[BlackElo "2338"]
[Annotator "NA"]
[PlyCount "188"]
[EventDate "2017.??.??"]
[EventType "swiss"]
[EventCountry "IRI"]
[SourceTitle "playchess.com"]
[Source "ChessBase"]
[SourceQuality "1"]
[TimeControl "5400+30"]

1. d4 {[%emt 0:00:00]} Nf6 {[%emt 0:00:20]} 2. c4 {[%emt 0:00:00]} Nc6 {[%emt 0:00:16]} 3. Nf3 {[%emt 0:00:00]} e6 {[%emt 0:00:35]} 4. Nc3 {[%emt 0:00:00]} Bb4 {[%emt 0:00:29]} 5. Qc2 {[%emt 0:00:02]} d6 {[%emt 0:01:09]} 6. Bd2 {[%emt 0:00:26]} O-O {[%emt 0:04:42]} 7. a3 {[%emt 0:00:07]} Bxc3 $1 {[%emt 0:00:08] LiveBook: 332 Games} 8. Bxc3 {[%emt 0:00:09]} ({Reject} 8. bxc3 e5 $11) 8... Qe7 {[%emt 0:06:15]} 9. e4 {[%emt 0:00:24] E33: Nimzo-Indian: Classical: 4...Nc6} e5 {[%emt 0:01:28]} 10. d5 $1 {[%emt 0:00:06]} Nb8 {[%emt 0:05:49]} 11. g3 {[%emt 0:03:28]} a5 {[%emt 0:12:01]} 12. Bg2 $146 {[%emt 0:03:54]} ({Predecessor:} 12. b3 Nbd7 13. Bg2 Nc5 14. Nd2 Bd7 15. O-O b6 16. Rae1 Nh5 {½-½ (72) Kaspi,A (2435)-Najer,E (2664) Eilat 2012}) 12... Na6 {[%emt 0:04:53]} 13. Nd2 {[%emt 0:04:46]} b6 {[%emt 0:08:55]} 14. O-O {[%emt 0:03:48]} Bd7 {[%emt 0:06:20]} 15. f4 {[%emt 0:04:56]} (15. b4 $16) 15... Ng4 {[%emt 0:01:18]} 16. Rae1 {[%emt 0:01:13]} a4 $1 {[%emt 0:00:14]} 17. h3 {[%emt 0:04:50]} Nh6 $1 {[%emt 0:00:06]} 18. Kh2 {[%emt 0:01:42]} f6 {[%emt 0:03:47]} 19. fxe5 {[%emt 0:04:56]} fxe5 {[%emt 0:09:03]} 20. Rxf8+ {[%emt 0:02:48]} Rxf8 {[%emt 0:00:09]} 21. Rf1 {[%emt 0:00:15]} Rb8 {[%emt 0:04:33]} 22. Bb4 {[%emt 0:03:18]} b5 {[%emt 0:03:42]} 23. Qc3 {[%emt 0:03:04]} bxc4 {[%emt 0:01:49]} 24. Nxc4 {[%emt 0:00:10]} Qe8 {[%emt 0:02:10]} 25. Na5 Nf7 {[%emt 0:06:19]} 26. Qd2 {[%emt 0:05:51]} h6 {[%emt 0:02:54]} 27. Kg1 {[%emt 0:02:58]} Ng5 {[%emt 0:00:38]} 28. h4 {[%emt 0:00:12]} Nh7 $1 {[%emt 0:00:09]} ({Wrong is} 28... Nh3+ $2 29. Kh2 $18) 29. Rc1 {[%emt 0:03:16]} Nf6 {[%emt 0:01:54]} 30. Nc6 {[%emt 0:10:06]} Bxc6 {[%emt 0:00:35]} 31. Rxc6 {[%emt 0:00:18]} Nxb4 {[%emt 0:00:12]} 32. axb4 {[%emt 0:00:11]} Rb7 {[%emt 0:01:34]} 33. Qe1 {[%emt 0:03:56]} Qb8 {[%emt 0:01:20]} 34. Rc4 {[%emt 0:00:12]} Ng4 {[%emt 0:03:25]} 35. Kh1 {[%emt 0:05:03]} Qa7 {[%emt 0:00:37]} 36. Rc2 {[%emt 0:00:57]} (36. Bf3 $11 Nf6 37. Qg1) 36... Ne3 {[%emt 0:01:10]} 37. Re2 {[%emt 0:06:17]} Nxg2 {[%emt 0:00:01]} 38. Kxg2 {[%emt 0:00:12]} Qd4 {[%emt 0:00:32]} 39. Qf1 {[%emt 0:00:09]} Qd3 {[%emt 0:02:19]} 40. Kh3 {[%emt 0:01:13]} Rb8 {[%emt 0:05:18]} 41. Qf2 $17 {[%emt 0:02:22]} Rf8 {[%emt 0:00:43]} 42. Qe3 {[%emt 0:00:14]} Qb1 {[%emt 0:01:03]} 43. Kg4 {[%emt 0:01:13]} Qf1 {[%emt 0:00:30]} 44. h5 {[%emt 0:01:28]} Kh7 {[%emt 0:00:31]} 45. Rh2 {[%emt 0:00:13]} Qd1+ {[%emt 0:00:17]} 46. Qe2 {[%emt 0:00:04]} Qd4 {[%emt 0:00:42]} 47. b5 {[%emt 0:00:26]} Qg1 {[%emt 0:00:28]} 48. Rg2 {[%emt 0:00:16]} Qh1 {[%emt 0:00:27]} 49. Rh2 {[%emt 0:00:12]} Qc1 {[%emt 0:00:36]} 50. Rf2 {[%emt 0:00:42]} Qg5+ {[%emt 0:00:24]} 51. Kh3 {[%emt 0:00:04]} Rxf2 {[%emt 0:00:13]} 52. Qxf2 {[%emt 0:00:02]} Qxh5+ {[%emt 0:00:01]} 53. Kg2 {[%emt 0:00:06]} Qg4 {[%emt 0:00:59]} 54. Qc2 {[%emt 0:00:13]} h5 {[%emt 0:00:30]} 55. Kh2 {[%emt 0:00:13]} Qf3 {[%emt 0:00:53]} 56. Qxc7 {[%emt 0:00:38]} Qe2+ {[%emt 0:00:09]} 57. Kh3 {[%emt 0:00:07]} Qxe4 {[%emt 0:00:12]} 58. Kh2 {[%emt 0:00:51]} Qe2+ {[%emt 0:00:12]} 59. Kh3 {[%emt 0:00:11]} Qg4+ {[%emt 0:00:07]} 60. Kh2 {[%emt 0:00:08]} Qe2+ {[%emt 0:00:02]} 61. Kh3 {[%emt 0:00:06]} Qf1+ {[%emt 0:00:38]} 62. Kh2 {[%emt 0:00:14]} Qxb5 {[%emt 0:01:09]} 63. Qxd6 {[%emt 0:00:07]} Qxb2+ {[%emt 0:00:07]} 64. Kh3 {[%emt 0:00:04]} a3 {[%emt 0:00:54]} 65. Qe6 {[%emt 0:00:30]} Qb1 {[%emt 0:00:29]} 66. Kh2 {[%emt 0:00:50]} a2 {[%emt 0:00:40]} 67. Qxe5 {[%emt 0:00:10]} Kh6 {[%emt 0:01:13]} 68. Qf4+ {[%emt 0:05:51]} Kh7 {[%emt 0:00:19]} 69. Qe5 {[%emt 0:00:07]} Qc2+ {[%emt 0:00:25]} 70. Kh3 {[%emt 0:00:43]} Qg6 {[%emt 0:00:51]} 71. d6 {[%emt 0:01:12]} Qg4+ {[%emt 0:00:11]} 72. Kh2 {[%emt 0:00:31]} h4 {[%emt 0:00:17]} 73. gxh4 {[%emt 0:00:07]} Qxh4+ {[%emt 0:00:21]} 74. Kg2 {[%emt 0:00:11]} Qg4+ {[%emt 0:00:37]} 75. Kh2 {[%emt 0:01:26]} Kh6 {[%emt 0:00:58]} 76. Qb2 {[%emt 0:02:22]} Qf4+ {[%emt 0:00:31]} 77. Kg2 {[%emt 0:00:08]} Qe4+ {[%emt 0:00:30]} 78. Kh2 {[%emt 0:00:19]} Qb1 {[%emt 0:00:35]} 79. Qd2+ {[%emt 0:00:15]} g5 {[%emt 0:00:24]} 80. d7 {[%emt 0:01:39]} Qb8+ {[%emt 0:00:04]} 81. Kg2 {[%emt 0:00:14]} Qa8+ {[%emt 0:00:49]} 82. Kf2 {[%emt 0:00:44]} Qa7+ {[%emt 0:00:46]} 83. Kg2 {[%emt 0:02:07]} Qa8+ {[%emt 0:00:08]} 84. Kf2 {[%emt 0:00:07]} a1=Q {[%emt 0:00:14]} 85. d8=Q {[%emt 0:00:21]} Q8a7+ {[%emt 0:00:21]} 86. Ke2 {[%emt 0:00:10]} Qe5+ {[%emt 0:00:44]} 87. Kd1 {[%emt 0:00:21]} Qaa1+ {[%emt 0:00:34]} 88. Qc1 {[%emt 0:00:22]} Qa4+ {[%emt 0:00:11]} 89. Qc2 {[%emt 0:00:05]} Qea1+ {[%emt 0:00:25]} 90. Kd2 {[%emt 0:00:15]} Qf4+ {[%emt 0:00:24]} 91. Kd3 {[%emt 0:00:09]} Qa3+ {[%emt 0:00:08]} 92. Qc3 {[%emt 0:00:28]} Qf3+ {[%emt 0:00:06]} 93. Kc2 {[%emt 0:00:09]} Qaxc3+ {[%emt 0:00:05]} 94. Kb1 {[%emt 0:00:05]} Qf1+ {[%emt 0:00:11]} 0-1

[Event "Asian Junior-ch 2017-Open"]
[Site "Shiraz"]
[Date "2017.05.10"]
[Round "9"]
[White "Daneshvar, Bardiya"]
[Black "Hamidi, Amir Mohammad"]
[Result "1/2-1/2"]
[ECO "D53"]
[WhiteElo "2105"]
[BlackElo "2187"]
[Annotator "ChessBase"]
[PlyCount "169"]
[EventDate "2017.??.??"]
[EventType "swiss"]
[EventCountry "IRI"]
[SourceTitle "playchess.com"]
[Source "ChessBase"]
[SourceQuality "1"]
[TimeControl "5400+30"]

1. d4 {[%emt 0:00:00]} e6 {[%emt 0:00:39]} 2. c4 {[%emt 0:00:00]} d5 {[%emt 0:00:08]} 3. Nc3 {[%emt 0:00:00]} Nf6 {[%emt 0:00:08]} 4. Bg5 {[%emt 0:00:00]} Be7 {[%emt 0:01:29]} 5. cxd5 {[%emt 0:00:08]} Nxd5 {[%emt 0:02:03]} 6. Bxe7 {[%emt 0:01:01]} Qxe7 {[%emt 0:00:08]} 7. Nxd5 {[%emt 0:00:08]} exd5 {[%emt 0:00:09]} 8. Qd2 {[%emt 0:06:21]} a5 {[%emt 0:01:54]} 9. Nf3 {[%emt 0:04:42]} O-O {[%emt 0:01:32]} 10. e3 {[%emt 0:00:34]} Nd7 {[%emt 0:01:54]} 11. Bd3 {[%emt 0:04:13]} Nf6 {[%emt 0:01:25]} 12. O-O {[%emt 0:00:37]} Ne4 {[%emt 0:00:38]} 13. Bxe4 {[%emt 0:08:05]} dxe4 {[%emt 0:00:44]} 14. Ne5 {[%emt 0:00:13]} Be6 {[%emt 0:11:37]} 15. Qc2 {[%emt 0:04:26]} Bd5 {[%emt 0:01:14]} 16. Rfc1 {[%emt 0:05:56]} f6 {[%emt 0:02:24]} 17. Nc4 {[%emt 0:00:11]} Qe6 {[%emt 0:05:09]} 18. b3 g5 {[%emt 0:01:22]} 19. Qd2 {[%emt 0:12:06]} a4 {[%emt 0:01:42]} 20. Qb4 {[%emt 0:01:10]} h5 {[%emt 0:02:43]} 21. Nb2 {[%emt 0:04:39]} axb3 {[%emt 0:12:27]} 22. axb3 {[%emt 0:00:06]} Rxa1 {[%emt 0:01:18]} 23. Rxa1 {[%emt 0:00:11]} h4 {[%emt 0:00:04]} 24. h3 {[%emt 0:12:49]} b6 {[%emt 0:06:16]} 25. Nc4 {[%emt 0:04:19]} Rf7 {[%emt 0:01:14]} 26. Qd2 {[%emt 0:07:15]} Bxc4 {[%emt 0:01:59]} 27. bxc4 {[%emt 0:00:53]} Qxc4 {[%emt 0:00:04]} 28. Ra8+ {[%emt 0:00:24]} Kg7 {[%emt 0:00:47]} 29. Qd1 {[%emt 0:00:23]} Qd5 {[%emt 0:01:07]} 30. Re8 {[%emt 0:01:31]} Qc6 {[%emt 0:04:11]} 31. Rc8 {[%emt 0:01:08]} Rf8 {[%emt 0:00:43]} 32. d5 {[%emt 0:01:44]} Qc5 {[%emt 0:01:05]} 33. Rxf8 {[%emt 0:00:19]} Kxf8 {[%emt 0:00:48]} 34. Qg4 {[%emt 0:01:00]} Qe7 {[%emt 0:00:00]} 35. Qe2 {[%emt 0:01:45]} Kg7 {[%emt 0:05:42]} 36. Qc4 {[%emt 0:00:14]} Qe5 {[%emt 0:00:46]} 37. Qc6 {[%emt 0:00:17]} f5 {[%emt 0:01:19]} 38. Qd7+ {[%emt 0:00:07]} Kf6 {[%emt 0:02:25]} 39. Qd8+ {[%emt 0:00:41]} Qe7 {[%emt 0:00:09]} 40. Qh8+ {[%emt 0:00:07]} Qg7 {[%emt 0:00:40]} 41. Qe8 {[%emt 0:00:09]} Qf7 {[%emt 0:02:27]} 42. Qd8+ {[%emt 0:02:27]} Kg6 {[%emt 0:00:52]} 43. d6 {[%emt 0:00:22]} cxd6 {[%emt 0:00:17]} 44. Qxb6 {[%emt 0:00:07]} Qf6 {[%emt 0:00:06]} 45. Qb8 {[%emt 0:00:16]} Kh6 {[%emt 0:01:56]} 46. Qa8 {[%emt 0:02:16]} Qe6 {[%emt 0:00:39]} 47. Qd8 {[%emt 0:00:44]} Kg6 {[%emt 0:00:42]} 48. Qf8 {[%emt 0:00:12]} d5 {[%emt 0:00:24]} 49. Qh8 {[%emt 0:00:10]} Qf7 {[%emt 0:03:38]} 50. Qd8 {[%emt 0:00:38]} f4 {[%emt 0:00:50]} 51. exf4 {[%emt 0:00:10]} gxf4 {[%emt 0:00:18]} 52. Qxh4 {[%emt 0:00:22]} Qf6 {[%emt 0:00:40]} 53. Qg4+ {[%emt 0:02:46]} Kh6 {[%emt 0:00:23]} 54. Qe2 {[%emt 0:07:37]} Qe6 {[%emt 0:01:27]} 55. Qd2 {[%emt 0:02:21]} e3 {[%emt 0:00:05]} 56. fxe3 {[%emt 0:00:07]} fxe3 {[%emt 0:01:15]} 57. Qd4 {[%emt 0:01:06]} Kg6 {[%emt 0:01:54]} 58. Qd3+ {[%emt 0:00:38]} Kf6 {[%emt 0:02:17]} 59. h4 {[%emt 0:01:16]} Qe5 {[%emt 0:02:57]} 60. Qa6+ {[%emt 0:00:56]} Kg7 {[%emt 0:00:37]} 61. Qe2 {[%emt 0:02:12]} d4 {[%emt 0:00:09]} 62. h5 {[%emt 0:00:12]} Kh6 {[%emt 0:00:13]} 63. Qg4 {[%emt 0:00:05]} Qf6 {[%emt 0:00:51]} 64. Qe2 {[%emt 0:00:42]} Qf4 {[%emt 0:03:31]} 65. g4 {[%emt 0:00:23]} Qg3+ {[%emt 0:00:49]} 66. Qg2 {[%emt 0:00:08]} Qe1+ {[%emt 0:01:07]} 67. Qf1 {[%emt 0:00:13]} Qg3+ {[%emt 0:02:28]} 68. Qg2 {[%emt 0:00:05]} Qf4 {[%emt 0:00:43]} 69. Qe2 {[%emt 0:01:04]} Kg5 {[%emt 0:00:30]} 70. Kg2 {[%emt 0:00:07]} Kh4 {[%emt 0:00:35]} 71. Qf3 {[%emt 0:00:08]} Qd6 {[%emt 0:01:18]} 72. Qh3+ {[%emt 0:01:57]} Kg5 {[%emt 0:00:02]} 73. Qf3 {[%emt 0:00:01]} Qe5 {[%emt 0:00:41]} 74. Qe2 {[%emt 0:00:15]} Kh4 {[%emt 0:00:27]} 75. h6 {[%emt 0:00:22]} Kg5 {[%emt 0:03:38]} 76. h7 {[%emt 0:00:16]} Qe4+ {[%emt 0:00:20]} 77. Kg3 {[%emt 0:00:08]} Qe5+ {[%emt 0:01:45]} 78. Kf3 {[%emt 0:00:14]} Kg6 {[%emt 0:01:21]} 79. Qc2+ {[%emt 0:02:30]} Kg7 {[%emt 0:00:18]} 80. Qb1 {[%emt 0:00:04]} Qd5+ {[%emt 0:00:31]} 81. Ke2 {[%emt 0:00:08]} Qg2+ {[%emt 0:00:17]} 82. Kd3 {[%emt 0:00:05]} Qxg4 {[%emt 0:00:26]} 83. Qb7+ {[%emt 0:00:17]} Kh8 {[%emt 0:00:02]} 84. Qf7 {[%emt 0:00:20]} Qg5 {[%emt 0:02:42]} 85. Kxd4 {[%emt 0:00:28]} 1/2-1/2